[Event "46th GRE-chT Premier 2018"]
[Site "Rio Achaia"]
[Date "2018.07.11"]
[Round "2"]
[White "Houhouli, Hristina"]
[Black "Kafetzi, Angeliki"]
[Result "0-1"]
[ECO "B40"]
[WhiteElo "1439"]
[BlackElo "1815"]
[Annotator "NA"]
[PlyCount "74"]
[EventDate "2018.07.10"]
[EventType "team-tourn"]
[EventCountry "GRE"]
[SourceTitle "playchess.com"]
[Source "ChessBase"]
[SourceQuality "1"]
[TimeControl "40/5400+30:1800+30"]

1. e4 {[%emt 0:00:00]} c5 {[%emt 0:00:00]} 2. Nf3 {[%emt 0:00:00]} e6 {[%emt 0:00:00]} 3. d4 {[%emt 0:00:00]} cxd4 {[%emt 0:00:00]} 4. Nxd4 {[%emt 0:00:00]} Nf6 {[%emt 0:00:18]} 5. Nc3 {[%emt 0:00:14]} Nc6 {[%emt 0:00:13]} 6. Nb3 {[%emt 0:03:00]} Bb4 {[%emt 0:01:06]} 7. Bd3 {[%emt 0:04:22]} d5 {[%emt 0:03:00]} 8. exd5 {[%emt 0:11:48]} Nxd5 {[%emt 0:03:43]} 9. Bd2 {[%emt 0:03:44]} O-O {[%emt 0:05:31]} 10. O-O {[%emt 0:06:29]} Nxc3 {[%emt 0:04:42]} 11. bxc3 {[%emt 0:00:57]} Bd6 {[%emt 0:00:52]} 12. Qh5 {[%emt 0:11:07]} f5 {[%emt 0:02:59]} 13. Rfe1 {[%emt 0:11:21]} Bd7 {[%emt 0:05:51]} 14. Nd4 {[%emt 0:07:17]} Qe8 {[%emt 0:10:41]} 15. Qe2 {[%emt 0:10:43]} e5 {[%emt 0:04:09]} 16. Bc4+ {[%emt 0:02:48]} Kh8 {[%emt 0:00:49]} 17. Nb5 {[%emt 0:03:36]} Bb8 {[%emt 0:01:32]} 18. Be3 {[%emt 0:05:12]} a6 {[%emt 0:04:26]} 19. Na3 {[%emt 0:00:40]} Bd6 {[%emt 0:01:01]} 20. Nb1 {[%emt 0:00:08]} b5 {[%emt 0:02:39]} 21. Bd5 {[%emt 0:00:46]} Rc8 {[%emt 0:00:31]} 22. c4 {[%emt 0:04:38]} Nb4 {[%emt 0:05:25]} 23. a3 {[%emt 0:02:02]} Nxd5 {[%emt 0:01:02]} 24. cxd5 {[%emt 0:00:07]} e4 {[%emt 0:03:26]} 25. Bd4 {[%emt 0:02:53]} Be5 {[%emt 0:04:57]} 26. c3 {[%emt 0:02:56]} Bxd4 {[%emt 0:00:17]} 27. cxd4 {[%emt 0:00:05]} Qf7 {[%emt 0:01:15]} 28. Qa2 {[%emt 0:00:45]} Rc4 {[%emt 0:02:36]} 29. Rd1 {[%emt 0:01:22]} Rfc8 {[%emt 0:02:48]} 30. Nd2 {[%emt 0:02:19]} Rxd4 {[%emt 0:04:58]} 31. Nb3 {[%emt 0:01:13]} Rdc4 {[%emt 0:03:12]} 32. Qd2 {[%emt 0:01:32]} f4 {[%emt 0:03:34]} 33. Rac1 {[%emt 0:00:58]} Bg4 {[%emt 0:03:58]} 34. Rxc4 {[%emt 0:00:27]} bxc4 {[%emt 0:00:53]} 35. Rc1 {[%emt 0:01:18]} cxb3 {[%emt 0:00:30]} 36. Rb1 {[%emt 0:00:31]} Rc2 {[%emt 0:04:27]} 37. Qb4 {[%emt 0:00:20]} b2 {[%emt 0:02:17]} 0-1

[Event "46th GRE-chT Premier 2018"]
[Site "Rio Achaia"]
[Date "2018.07.11"]
[Round "2"]
[White "Fragou, Maria V"]
[Black "Ilia, Anastasia"]
[Result "0-1"]
[ECO "B01"]
[WhiteElo "1427"]
[BlackElo "1348"]
[Annotator "NA"]
[PlyCount "70"]
[EventDate "2018.07.10"]
[EventType "team-tourn"]
[EventCountry "GRE"]
[SourceTitle "playchess.com"]
[Source "ChessBase"]
[SourceQuality "1"]
[TimeControl "40/5400+30:1800+30"]

1. e4 {[%emt 0:00:00]} d5 {[%emt 0:00:00]} 2. exd5 {[%emt 0:00:00]} Nf6 {[%emt 0:00:00]} 3. Nf3 {[%emt 0:00:00]} Bg4 {[%emt 0:00:00]} 4. Be2 {[%emt 0:00:00]} Nxd5 {[%emt 0:00:01]} 5. d4 {[%emt 0:00:00]} e6 {[%emt 0:00:29]} 6. h3 {[%emt 0:01:53]} Bh5 {[%emt 0:01:16]} 7. Ne5 {[%emt 0:04:45]} Bxe2 {[%emt 0:02:14]} 8. Qxe2 {[%emt 0:00:09]} Nf6 {[%emt 0:03:58]} 9. c3 {[%emt 0:03:07]} c6 {[%emt 0:01:03]} 10. Nd2 {[%emt 0:02:23]} Nbd7 {[%emt 0:05:03]} 11. Ndf3 {[%emt 0:03:55]} h6 {[%emt 0:00:33]} 12. Bf4 {[%emt 0:02:09]} Be7 {[%emt 0:04:35]} 13. O-O {[%emt 0:07:14]} O-O {[%emt 0:01:45]} 14. Rfd1 {[%emt 0:08:35]} Nb6 {[%emt 0:13:50]} 15. c4 {[%emt 0:04:37]} Qe8 {[%emt 0:13:03]} 16. Nh2 {[%emt 0:05:14]} Nbd7 {[%emt 0:19:20]} 17. Rd3 {[%emt 0:06:59]} Nxe5 {[%emt 0:04:57]} 18. Bxe5 {[%emt 0:14:15]} Qd8 {[%emt 0:06:14]} 19. Ng4 {[%emt 0:11:33]} Nxg4 {[%emt 0:05:56]} 20. Qxg4 {[%emt 0:00:59]} Bf6 {[%emt 0:00:32]} 21. Qg3 {[%emt 0:06:02]} Bxe5 {[%emt 0:01:34]} 22. Qxe5 {[%emt 0:00:18]} Qg5 {[%emt 0:01:00]} 23. Qxg5 {[%emt 0:01:16]} hxg5 {[%emt 0:00:06]} 24. Rg3 {[%emt 0:00:25]} f6 {[%emt 0:00:15]} 25. Re1 {[%emt 0:00:49]} Rfe8 {[%emt 0:00:45]} 26. Rd3 {[%emt 0:04:22]} Rad8 {[%emt 0:02:08]} 27. Red1 {[%emt 0:01:19]} Rd6 {[%emt 0:00:57]} 28. Kf1 {[%emt 0:01:10]} Red8 {[%emt 0:02:16]} 29. Ke2 {[%emt 0:01:20]} Kf7 {[%emt 0:00:25]} 30. a4 {[%emt 0:01:47]} a5 {[%emt 0:00:54]} 31. Ke3 {[%emt 0:01:11]} f5 {[%emt 0:02:37]} 32. f4 {[%emt 0:05:16]} gxf4+ {[%emt 0:04:17]} 33. Kxf4 {[%emt 0:00:07]} Kf6 {[%emt 0:01:46]} 34. R1d2 {[%emt 0:02:10]} g5+ {[%emt 0:00:24]} 35. Kf3 {[%emt 0:00:18]} c5 {[%emt 0:01:43]} 0-1

[Event "46th GRE-chT Premier 2018"]
[Site "Rio Achaia"]
[Date "2018.07.11"]
[Round "2"]
[White "Merkos, Thomas"]
[Black "Yannopapas, Leontios"]
[Result "1-0"]
[ECO "B38"]
[WhiteElo "1425"]
[BlackElo "1366"]
[Annotator "NA"]
[PlyCount "71"]
[EventDate "2018.07.10"]
[EventType "team-tourn"]
[EventCountry "GRE"]
[SourceTitle "playchess.com"]
[Source "ChessBase"]
[SourceQuality "1"]
[TimeControl "40/5400+30:1800+30"]

1. e4 {[%emt 0:00:00]} c5 {[%emt 0:00:00]} 2. Nf3 {[%emt 0:00:00]} g6 {[%emt 0:00:00]} 3. d4 {[%emt 0:00:00]} cxd4 {[%emt 0:00:00]} 4. Nxd4 {[%emt 0:00:00]} Bg7 {[%emt 0:00:00]} 5. c4 {[%emt 0:00:18]} Nc6 {[%emt 0:00:00]} 6. Be3 {[%emt 0:00:11]} Nf6 {[%emt 0:00:08]} 7. Nc3 {[%emt 0:01:19]} O-O {[%emt 0:00:44]} 8. Be2 {[%emt 0:00:04]} d6 {[%emt 0:00:12]} 9. O-O {[%emt 0:00:06]} Bd7 {[%emt 0:00:08]} 10. f3 {[%emt 0:00:08]} Qb6 {[%emt 0:04:40]} 11. Kh1 {[%emt 0:01:03]} Qxb2 {[%emt 0:09:22]} 12. Na4 Qb4 {[%emt 0:09:59]} 13. Bd2 {[%emt 0:01:34]} Nxd4 {[%emt 0:10:03]} 14. Bxb4 {[%emt 0:00:06]} Nxe2 {[%emt 0:00:09]} 15. Qxe2 {[%emt 0:00:24]} Bxa4 {[%emt 0:00:07]} 16. Rac1 {[%emt 0:02:21]} a6 {[%emt 0:01:57]} 17. c5 {[%emt 0:01:48]} Bb5 {[%emt 0:00:45]} 18. Qf2 {[%emt 0:01:01]} Bxf1 {[%emt 0:00:09]} 19. Qxf1 {[%emt 0:00:02]} dxc5 {[%emt 0:01:04]} 20. Rxc5 {[%emt 0:02:14]} Rac8 {[%emt 0:02:44]} 21. Qc4 {[%emt 0:08:37]} Rxc5 {[%emt 0:03:18]} 22. Qxc5 {[%emt 0:00:24]} Rd8 {[%emt 0:00:32]} 23. g3 {[%emt 0:00:14]} Bf8 {[%emt 0:03:02]} 24. Qc7 {[%emt 0:01:33]} Rd7 {[%emt 0:06:03]} 25. Qc8 {[%emt 0:03:19]} Rd1+ {[%emt 0:05:18]} 26. Kg2 {[%emt 0:00:16]} Kg7 {[%emt 0:05:13]} 27. a3 {[%emt 0:07:04]} Rb1 {[%emt 0:08:03]} 28. Qc7 {[%emt 0:10:00]} e6 {[%emt 0:10:43]} 29. Qc2 {[%emt 0:11:56]} Ra1 {[%emt 0:02:02]} 30. Qb2 {[%emt 0:00:27]} Bxb4 {[%emt 0:06:33]} 31. Qxa1 {[%emt 0:00:13]} Be7 {[%emt 0:00:17]} 32. Qc3 {[%emt 0:01:19]} b6 {[%emt 0:00:25]} 33. g4 {[%emt 0:01:41]} h6 {[%emt 0:00:10]} 34. h4 {[%emt 0:00:37]} g5 {[%emt 0:00:23]} 35. hxg5 {[%emt 0:00:36]} hxg5 {[%emt 0:00:08]} 36. Qe3 {[%emt 0:00:36]} 1-0

[Event "46th GRE-chT Premier 2018"]
[Site "Rio Achaia"]
[Date "2018.07.11"]
[Round "2"]
[White "Kotsoglou, Evi"]
[Black "Tsolakidou, Stavroula"]
[Result "0-1"]
[ECO "B44"]
[WhiteElo "1424"]
[BlackElo "2423"]
[Annotator "NA RC"]
[PlyCount "48"]
[EventDate "2018.07.10"]
[EventType "team-tourn"]
[EventCountry "GRE"]
[SourceTitle "playchess.com"]
[Source "ChessBase"]
[SourceQuality "1"]
[TimeControl "40/5400+30:1800+30"]

1. e4 {[%emt 0:00:00]} c5 {[%emt 0:00:04]} 2. Nf3 {[%emt 0:00:00]} e6 {[%emt 0:00:00]} 3. d4 {[%emt 0:00:05]} cxd4 {[%emt 0:00:00]} 4. Nxd4 {[%emt 0:00:16]} Nc6 {[%emt 0:00:00]} 5. g3 {[%emt 0:01:28]} a6 {[%emt 0:07:34]} 6. Bg2 {[%emt 0:01:22]} Nge7 {[%emt 0:01:18]} 7. Ne2 {[%emt 0:10:36]} Ng6 {[%emt 0:02:49]} 8. O-O {[%emt 0:03:45]} Bc5 {[%emt 0:00:36]} 9. Nbc3 {[%emt 0:04:02]} Nge5 {[%emt 0:07:51]} 10. h3 $11 b5 {[%emt 0:04:18]} 11. Nf4 {[%emt 0:20:00]} Bb7 {[%emt 0:04:28]} 12. Nd3 {[%emt 0:04:33]} Ba7 {[%emt 0:05:33]} 13. Nxe5 {[%emt 0:06:59]} Nxe5 {[%emt 0:00:05]} 14. a3 {[%emt 0:08:01]} Qc7 {[%emt 0:02:02]} 15. Qe1 {[%emt 0:08:32]} O-O {[%emt 0:04:06]} 16. Bf4 {[%emt 0:06:55]} Rac8 {[%emt 0:02:23]} 17. Qd2 {[%emt 0:05:55]} Nc4 {[%emt 0:15:56]} 18. Qc1 {[%emt 0:09:54]} e5 {[%emt 0:04:39]} 19. Bd2 {[%emt 0:02:10]} Bd4 {[%emt 0:00:11]} 20. Rd1 {[%emt 0:04:04]} Rfd8 {[%emt 0:00:53]} 21. Rb1 {[%emt 0:01:19]} Qc5 {[%emt 0:07:09]} 22. Rf1 {[%emt 0:00:28]} Nxa3 {[%emt 0:01:07]} 23. bxa3 {[%emt 0:00:32]} Bxc3 {[%emt 0:03:31]} 24. Be3 Qc4 0-1

[Event "46th GRE-chT Premier 2018"]
[Site "Rio Achaia"]
[Date "2018.07.11"]
[Round "2"]
[White "Kafantaris, Pavlos"]
[Black "Spyratos, Nikolaos"]
[Result "0-1"]
[ECO "A07"]
[WhiteElo "1380"]
[BlackElo "1710"]
[Annotator "NA"]
[PlyCount "100"]
[EventDate "2018.07.10"]
[EventType "team-tourn"]
[EventCountry "GRE"]
[SourceTitle "playchess.com"]
[Source "ChessBase"]
[SourceQuality "1"]
[TimeControl "40/5400+30:1800+30"]

1. Nf3 {[%emt 0:00:00]} d5 {[%emt 0:00:00]} 2. g3 {[%emt 0:00:18]} Nf6 {[%emt 0:00:08]} 3. Bg2 {[%emt 0:00:26]} c6 {[%emt 0:00:48]} 4. O-O {[%emt 0:00:54]} Bg4 {[%emt 0:00:46]} 5. d3 {[%emt 0:02:30]} Bxf3 {[%emt 0:07:02]} 6. Bxf3 {[%emt 0:00:18]} e5 {[%emt 0:00:10]} 7. Nd2 {[%emt 0:02:18]} Bd6 {[%emt 0:06:16]} 8. c4 {[%emt 0:05:14]} d4 {[%emt 0:01:20]} 9. Qc2 {[%emt 0:03:12]} Nbd7 {[%emt 0:01:13]} 10. a3 {[%emt 0:00:34]} a5 {[%emt 0:00:11]} 11. b3 {[%emt 0:05:10]} Qe7 {[%emt 0:06:40]} 12. Bb2 {[%emt 0:01:53]} O-O {[%emt 0:00:19]} 13. Ne4 {[%emt 0:02:20]} Nxe4 {[%emt 0:00:59]} 14. dxe4 {[%emt 0:06:22]} c5 {[%emt 0:08:06]} 15. Qd3 {[%emt 0:06:12]} Nb8 {[%emt 0:03:41]} 16. Bc1 {[%emt 0:04:08]} Nc6 {[%emt 0:02:30]} 17. Bd2 {[%emt 0:02:16]} a4 {[%emt 0:05:56]} 18. Rfb1 {[%emt 0:01:51]} axb3 {[%emt 0:06:15]} 19. Qxb3 {[%emt 0:04:27]} Ra7 {[%emt 0:02:00]} 20. Ra2 {[%emt 0:15:45]} Bc7 {[%emt 0:06:59]} 21. Qb5 {[%emt 0:02:22]} Ba5 {[%emt 0:06:48]} 22. Bxa5 {[%emt 0:03:43]} Nxa5 {[%emt 0:08:31]} 23. Qb6 {[%emt 0:04:03]} Ra6 {[%emt 0:00:26]} 24. Qb5 {[%emt 0:00:12]} Rc8 {[%emt 0:02:59]} 25. Rab2 {[%emt 0:09:30]} Rcc6 {[%emt 0:03:44]} 26. a4 {[%emt 0:01:16]} Qe6 {[%emt 0:00:52]} 27. Kg2 {[%emt 0:02:55]} Nxc4 {[%emt 0:02:10]} 28. Bg4 {[%emt 0:01:17]} Ne3+ {[%emt 0:04:25]} 29. fxe3 {[%emt 0:00:49]} Qxg4 {[%emt 0:00:07]} 30. Qxb7 {[%emt 0:00:13]} Qxe4+ {[%emt 0:00:16]} 31. Kg1 {[%emt 0:01:44]} Qxe3+ {[%emt 0:00:22]} 32. Kg2 {[%emt 0:00:05]} h6 {[%emt 0:01:43]} 33. Qb8+ {[%emt 0:00:42]} Kh7 {[%emt 0:00:09]} 34. Rf1 {[%emt 0:00:38]} Rf6 {[%emt 0:01:05]} 35. Rxf6 {[%emt 0:03:18]} Rxf6 {[%emt 0:00:09]} 36. Qb7 {[%emt 0:00:20]} Qf2+ {[%emt 0:02:00]} 37. Kh3 {[%emt 0:00:12]} Qf5+ {[%emt 0:00:19]} 38. g4 {[%emt 0:00:57]} Qf1+ {[%emt 0:01:37]} 39. Qg2 {[%emt 0:00:29]} Qxg2+ {[%emt 0:00:30]} 40. Kxg2 {[%emt 0:00:00]} e4 {[%emt 0:00:00]} 41. Rc2 {[%emt 0:01:00]} Rc6 {[%emt 0:02:03]} 42. a5 {[%emt 0:00:26]} d3 {[%emt 0:00:22]} 43. Ra2 {[%emt 0:00:41]} c4 {[%emt 0:01:11]} 44. exd3 {[%emt 0:00:30]} c3 {[%emt 0:01:49]} 45. a6 {[%emt 0:00:53]} exd3 {[%emt 0:00:10]} 46. a7 {[%emt 0:00:37]} Rc8 {[%emt 0:00:06]} 47. Kf2 {[%emt 0:00:32]} c2 {[%emt 0:00:07]} 48. Ra1 {[%emt 0:00:27]} d2 {[%emt 0:00:08]} 49. a8=Q {[%emt 0:04:12]} Rxa8 {[%emt 0:00:05]} 50. Rxa8 {[%emt 0:00:09]} d1=Q {[%emt 0:00:11]} 0-1

[Event "46th GRE-chT Premier 2018"]
[Site "Rio Achaia"]
[Date "2018.07.11"]
[Round "2"]
[White "Kazakos, Nikolaos"]
[Black "Mavridis, Athanasios"]
[Result "1/2-1/2"]
[ECO "B17"]
[WhiteElo "1375"]
[BlackElo "1304"]
[Annotator "NA"]
[PlyCount "139"]
[EventDate "2018.07.10"]
[EventType "team-tourn"]
[EventCountry "GRE"]
[SourceTitle "playchess.com"]
[Source "ChessBase"]
[SourceQuality "1"]
[TimeControl "40/5400+30:1800+30"]

1. e4 {[%emt 0:00:00]} c6 {[%emt 0:00:00]} 2. d4 {[%emt 0:00:00]} d5 {[%emt 0:00:00]} 3. Nc3 {[%emt 0:00:00]} dxe4 {[%emt 0:00:00]} 4. Nxe4 {[%emt 0:00:04]} Nd7 {[%emt 0:00:00]} 5. Nf3 {[%emt 0:00:27]} Ngf6 {[%emt 0:00:06]} 6. Nxf6+ {[%emt 0:00:31]} Nxf6 {[%emt 0:00:06]} 7. Bc4 {[%emt 0:00:12]} Bf5 {[%emt 0:00:21]} 8. Ne5 {[%emt 0:00:21]} e6 {[%emt 0:00:16]} 9. g4 {[%emt 0:00:47]} Bg6 {[%emt 0:10:18]} 10. h4 {[%emt 0:01:47]} Bd6 {[%emt 0:00:44]} 11. Qe2 {[%emt 0:01:36]} Be4 {[%emt 0:11:41]} 12. f3 {[%emt 0:00:29]} Bd5 {[%emt 0:00:13]} 13. Bd3 {[%emt 0:00:46]} Bxe5 {[%emt 0:04:04]} 14. dxe5 {[%emt 0:01:00]} Nxg4 {[%emt 0:01:01]} 15. Rg1 {[%emt 0:05:21]} Qxh4+ {[%emt 0:00:28]} 16. Kd1 {[%emt 0:02:29]} Nh2 {[%emt 0:04:24]} 17. Be4 {[%emt 0:00:44]} Bxe4 {[%emt 0:00:28]} 18. fxe4 {[%emt 0:00:25]} O-O-O+ {[%emt 0:00:48]} 19. Bd2 {[%emt 0:00:23]} Qf4 {[%emt 0:01:28]} 20. Kc1 {[%emt 0:01:05]} Rxd2 {[%emt 0:00:21]} 21. Qxd2 {[%emt 0:00:12]} Qxd2+ {[%emt 0:00:04]} 22. Kxd2 {[%emt 0:00:07]} Nf3+ {[%emt 0:00:05]} 23. Ke3 {[%emt 0:00:08]} Nxg1 {[%emt 0:00:07]} 24. Rxg1 {[%emt 0:00:02]} g6 {[%emt 0:00:43]} 25. Rf1 {[%emt 0:00:21]} Rf8 {[%emt 0:00:08]} 26. Rh1 {[%emt 0:00:58]} h5 {[%emt 0:00:05]} 27. Rd1 {[%emt 0:00:29]} Rd8 {[%emt 0:00:11]} 28. Rf1 {[%emt 0:00:03]} Rd7 {[%emt 0:00:07]} 29. Rf2 {[%emt 0:00:18]} Kd8 {[%emt 0:00:07]} 30. Kf4 {[%emt 0:00:07]} Ke7 {[%emt 0:00:16]} 31. c3 {[%emt 0:00:59]} Rd8 {[%emt 0:01:01]} 32. Kg5 {[%emt 0:00:27]} Rh8 {[%emt 0:00:14]} 33. Kh4 {[%emt 0:00:45]} Rd8 {[%emt 0:00:56]} 34. Kg5 {[%emt 0:00:27]} Rd3 {[%emt 0:00:11]} 35. Kh6 {[%emt 0:00:32]} Kf8 {[%emt 0:00:52]} 36. Kg5 {[%emt 0:00:31]} Kg7 {[%emt 0:00:16]} 37. Rh2 {[%emt 0:00:35]} Rg3+ {[%emt 0:00:06]} 38. Kf4 {[%emt 0:00:07]} Rg4+ {[%emt 0:00:32]} 39. Kf3 {[%emt 0:00:12]} f6 {[%emt 0:00:42]} 40. Rd2 {[%emt 0:00:00]} fxe5 {[%emt 0:00:00]} 41. Rd7+ {[%emt 0:00:28]} Kf6 {[%emt 0:01:07]} 42. Rxb7 {[%emt 0:00:13]} Rf4+ {[%emt 0:00:04]} 43. Kg3 {[%emt 0:00:50]} h4+ {[%emt 0:00:06]} 44. Kh3 {[%emt 0:00:18]} Kg5 {[%emt 0:00:08]} 45. Rxa7 {[%emt 0:00:39]} Rxe4 {[%emt 0:00:38]} 46. Ra6 {[%emt 0:07:01]} Re3+ {[%emt 0:00:43]} 47. Kg2 {[%emt 0:00:07]} Re2+ {[%emt 0:00:31]} 48. Kh3 {[%emt 0:00:09]} Rxb2 {[%emt 0:01:58]} 49. Rxc6 {[%emt 0:00:07]} Rxa2 {[%emt 0:00:23]} 50. Rxe6 {[%emt 0:00:08]} Kf5 {[%emt 0:01:12]} 51. Re8 {[%emt 0:00:26]} Ra3 {[%emt 0:02:02]} 52. Rc8 {[%emt 0:01:34]} g5 {[%emt 0:00:28]} 53. Kg2 {[%emt 0:01:10]} g4 {[%emt 0:00:40]} 54. Rf8+ {[%emt 0:00:35]} Ke4 {[%emt 0:00:15]} 55. c4 {[%emt 0:01:17]} Kd4 {[%emt 0:00:54]} 56. Rc8 {[%emt 0:00:43]} Rc3 {[%emt 0:00:12]} 57. Rg8 {[%emt 0:00:20]} Rg3+ {[%emt 0:00:06]} 58. Kf2 {[%emt 0:00:11]} Kxc4 {[%emt 0:00:18]} 59. Rh8 {[%emt 0:00:49]} Rf3+ {[%emt 0:00:16]} 60. Kg1 {[%emt 0:01:42]} h3 {[%emt 0:01:40]} 61. Rh4 {[%emt 0:02:06]} Rg3+ {[%emt 0:00:07]} 62. Kh2 {[%emt 0:00:12]} Rg2+ {[%emt 0:00:07]} 63. Kh1 {[%emt 0:00:02]} e4 {[%emt 0:00:12]} 64. Rh5 {[%emt 0:00:16]} g3 {[%emt 0:00:23]} 65. Rc5+ {[%emt 0:00:11]} Kb3 {[%emt 0:01:19]} 66. Rc3+ {[%emt 0:00:33]} Kb2 {[%emt 0:02:52]} 67. Rb3+ {[%emt 0:00:07]} Kc1 {[%emt 0:00:12]} 68. Rb1+ {[%emt 0:00:12]} Kd2 {[%emt 0:02:43]} 69. Rd1+ {[%emt 0:00:31]} Ke3 {[%emt 0:01:11]} 70. Rd3+ {[%emt 0:00:13]} 1/2-1/2

[Event "46th GRE-chT Premier 2018"]
[Site "Rio Achaia"]
[Date "2018.07.11"]
[Round "2"]
[White "Kouta, Vasiliki"]
[Black "Vozinaki, Anthi - Maria"]
[Result "0-1"]
[ECO "B44"]
[WhiteElo "1350"]
[BlackElo "1971"]
[Annotator "NA"]
[PlyCount "78"]
[EventDate "2018.07.10"]
[EventType "team-tourn"]
[EventCountry "GRE"]
[SourceTitle "playchess.com"]
[Source "ChessBase"]
[SourceQuality "1"]
[TimeControl "40/5400+30:1800+30"]

1. e4 {[%emt 0:01:07]} c5 {[%emt 0:00:00]} 2. Nf3 {[%emt 0:00:22]} e6 {[%emt 0:00:00]} 3. d4 {[%emt 0:02:12]} cxd4 {[%emt 0:00:06]} 4. Nxd4 {[%emt 0:00:11]} Nc6 {[%emt 0:02:13]} 5. g3 {[%emt 0:02:44]} Qc7 {[%emt 0:02:11]} 6. Bg2 {[%emt 0:01:35]} a6 {[%emt 0:05:51]} 7. O-O {[%emt 0:05:57]} Nf6 {[%emt 0:01:42]} 8. Nc3 {[%emt 0:07:46]} h5 {[%emt 0:08:46]} 9. Nce2 {[%emt 0:18:13]} h4 {[%emt 0:05:41]} 10. Nb3 {[%emt 0:18:52]} hxg3 {[%emt 0:07:45]} 11. fxg3 {[%emt 0:00:28]} Qb6+ {[%emt 0:05:32]} 12. Kh1 {[%emt 0:12:37]} Ng4 {[%emt 0:05:30]} 13. h3 {[%emt 0:05:30]} Nf2+ {[%emt 0:02:56]} 14. Rxf2 {[%emt 0:00:07]} Qxf2 {[%emt 0:00:05]} 15. Qf1 {[%emt 0:03:14]} Qxf1+ {[%emt 0:03:53]} 16. Bxf1 {[%emt 0:00:02]} Be7 {[%emt 0:02:50]} 17. Be3 {[%emt 0:00:48]} d6 {[%emt 0:02:05]} 18. Rd1 {[%emt 0:02:12]} Ne5 {[%emt 0:07:53]} 19. Nc3 {[%emt 0:03:11]} Bd7 {[%emt 0:02:29]} 20. Na5 {[%emt 0:02:19]} Bc6 {[%emt 0:06:16]} 21. Nxc6 {[%emt 0:01:27]} bxc6 {[%emt 0:01:09]} 22. Na4 {[%emt 0:04:30]} c5 {[%emt 0:01:57]} 23. Kg2 {[%emt 0:01:46]} O-O {[%emt 0:00:56]} 24. Bf4 {[%emt 0:00:56]} f6 {[%emt 0:06:01]} 25. Bxe5 {[%emt 0:00:53]} fxe5 {[%emt 0:00:23]} 26. Nb6 {[%emt 0:00:51]} Ra7 {[%emt 0:03:00]} 27. Bc4 {[%emt 0:00:41]} Kf7 {[%emt 0:00:47]} 28. Rf1+ {[%emt 0:00:34]} Bf6 {[%emt 0:00:49]} 29. Rd1 {[%emt 0:00:34]} Ke7 {[%emt 0:00:59]} 30. Bb3 {[%emt 0:00:46]} Rd8 {[%emt 0:01:58]} 31. Nc4 {[%emt 0:00:49]} Rc7 {[%emt 0:01:54]} 32. Na5 {[%emt 0:00:54]} Rb8 {[%emt 0:02:03]} 33. Nc4 {[%emt 0:00:33]} Rd8 {[%emt 0:05:47]} 34. Na5 {[%emt 0:00:39]} Kf7 {[%emt 0:00:42]} 35. Nc4 {[%emt 0:00:37]} d5 {[%emt 0:02:56]} 36. exd5 {[%emt 0:00:37]} exd5 {[%emt 0:01:05]} 37. Ne3 {[%emt 0:00:05]} c4 {[%emt 0:00:37]} 38. Bxc4 {[%emt 0:00:50]} dxc4 {[%emt 0:00:16]} 39. Rxd8 {[%emt 0:00:08]} Bxd8 {[%emt 0:00:04]} 0-1

[Event "46th GRE-chT Premier 2018"]
[Site "Rio Achaia"]
[Date "2018.07.11"]
[Round "2"]
[White "Kaliontzaki, Argyro Evanthia"]
[Black "Matthaiaki, Nefeli"]
[Result "1-0"]
[ECO "C45"]
[WhiteElo "1346"]
[BlackElo "1266"]
[Annotator "NA"]
[PlyCount "91"]
[EventDate "2018.07.10"]
[EventType "team-tourn"]
[EventCountry "GRE"]
[SourceTitle "playchess.com"]
[Source "ChessBase"]
[SourceQuality "1"]
[TimeControl "40/5400+30:1800+30"]

1. e4 {[%emt 0:00:00]} e5 {[%emt 0:00:00]} 2. Nf3 {[%emt 0:00:00]} Nc6 {[%emt 0:00:00]} 3. d4 {[%emt 0:00:00]} exd4 {[%emt 0:00:10]} 4. Nxd4 {[%emt 0:00:00]} Bc5 {[%emt 0:00:49]} 5. Nb3 {[%emt 0:00:00]} Bb6 {[%emt 0:02:38]} 6. Nc3 {[%emt 0:00:40]} d6 {[%emt 0:02:36]} 7. Qe2 {[%emt 0:02:45]} Nf6 {[%emt 0:04:47]} 8. Be3 {[%emt 0:05:34]} O-O {[%emt 0:04:28]} 9. O-O-O {[%emt 0:03:05]} Re8 {[%emt 0:07:05]} 10. Bxb6 {[%emt 0:08:21]} axb6 {[%emt 0:03:26]} 11. f3 {[%emt 0:04:54]} Be6 {[%emt 0:05:23]} 12. Kb1 {[%emt 0:17:03]} Qd7 {[%emt 0:10:16]} 13. Qd2 {[%emt 0:03:23]} Ne5 {[%emt 0:08:44]} 14. Nd5 {[%emt 0:03:47]} Nxd5 {[%emt 0:06:42]} 15. exd5 {[%emt 0:00:29]} Bf5 {[%emt 0:00:29]} 16. Nd4 {[%emt 0:03:48]} Qa4 {[%emt 0:09:10]} 17. a3 {[%emt 0:04:22]} Qd7 {[%emt 0:03:41]} 18. f4 {[%emt 0:03:23]} Bg4 {[%emt 0:09:02]} 19. fxe5 {[%emt 0:07:54]} Rxe5 {[%emt 0:03:15]} 20. Bb5 {[%emt 0:02:34]} Qd8 {[%emt 0:02:50]} 21. Rde1 {[%emt 0:03:12]} Qf6 {[%emt 0:00:28]} 22. Rhf1 {[%emt 0:03:29]} Rxe1+ {[%emt 0:01:53]} 23. Rxe1 {[%emt 0:00:25]} h6 {[%emt 0:00:30]} 24. Rf1 {[%emt 0:02:56]} Qe5 {[%emt 0:02:07]} 25. Qf4 {[%emt 0:00:47]} Qxf4 {[%emt 0:01:03]} 26. Rxf4 {[%emt 0:00:09]} Bh5 {[%emt 0:00:05]} 27. Re4 {[%emt 0:00:46]} Bg6 {[%emt 0:00:58]} 28. Re7 {[%emt 0:00:56]} Rc8 {[%emt 0:00:41]} 29. Bd7 {[%emt 0:02:14]} Rd8 {[%emt 0:00:49]} 30. Ba4 {[%emt 0:01:43]} Ra8 {[%emt 0:01:42]} 31. b3 {[%emt 0:00:46]} Rc8 {[%emt 0:00:07]} 32. Nb5 {[%emt 0:00:40]} c6 {[%emt 0:01:06]} 33. Nxd6 {[%emt 0:02:21]} Rd8 {[%emt 0:00:32]} 34. Nxb7 {[%emt 0:00:58]} Rxd5 {[%emt 0:00:33]} 35. Bxc6 {[%emt 0:00:40]} Rd1+ {[%emt 0:00:13]} 36. Kb2 {[%emt 0:00:25]} Rd2 {[%emt 0:00:24]} 37. Be4 {[%emt 0:03:19]} Re2 {[%emt 0:00:48]} 38. Re8+ {[%emt 0:00:27]} Kh7 {[%emt 0:00:10]} 39. Bxg6+ {[%emt 0:00:05]} Kxg6 {[%emt 0:00:11]} 40. Rxe2 {[%emt 0:00:00]} Kf6 {[%emt 0:00:00]} 41. a4 {[%emt 0:00:18]} g6 {[%emt 0:01:17]} 42. a5 {[%emt 0:00:12]} bxa5 {[%emt 0:00:18]} 43. Nxa5 {[%emt 0:00:07]} g5 {[%emt 0:00:09]} 44. b4 {[%emt 0:00:07]} Kg6 {[%emt 0:00:30]} 45. b5 {[%emt 0:00:08]} f6 {[%emt 0:00:30]} 46. b6 {[%emt 0:00:12]} 1-0